bitfinex/quotes_ETHUSD_20241103
["timestamp","ask_amount","ask_price","bid_price","bid_amount"]
[1730650170540,1.27852638,2453.0,2452.7,0.7756]
[1730650171106,2.55540035,2452.9,2452.7,0.7756]
[1730650171839,6.63223035,2452.9,2452.4,4.89369]
[1730650172041,2.55540035,2452.9,2452.5,4.07745]
[1730650172245,0.85181973,2452.7,2452.5,4.07745]
[1730650172719,0.85181973,2452.7,2452.4,1.305569]
[1730650172906,0.85181973,2452.7,2452.5,0.08153772]
[1730650173246,0.85181973,2452.7,2452.6,4.0773]
[1730650173638,0.85181973,2452.7,2452.6,4.15883701]
[1730650174013,1.64911973,2452.7,2450.0,0.42599469]
[1730650174210,4.07957,2451.3,2450.6,0.8162]
[1730650174518,4.07881,2451.7,2451.1,0.08158434]
[1730650174965,4.07915,2451.5,2451.1,0.08158434]
[1730650175254,4.07881,2451.7,2451.1,0.08158434]
[1730650175555,4.07902,2451.6,2451.1,0.08158434]
[1730650175862,4.07919,2451.5,2451.1,0.08158434]
[1730650176012,4.07881,2451.7,2451.1,0.08158434]
[1730650176450,4.07912,2451.6,2451.1,0.08158434]
[1730650177040,4.07912,2451.6,2450.8,4.08017]
[1730650177378,4.07912,2451.6,2451.1,0.08157972]
[1730650177511,4.07929,2451.5,2451.1,0.08157972]
[1730650177910,4.15399617,2452.2,2451.2,0.8162]
[1730650178113,4.07844,2452.0,2451.3,0.08157368]
[1730650178354,4.07831,2452.0,2451.3,4.16101368]
[1730650178554,4.07831,2452.0,2451.4,0.49772137]
[1730650178740,4.07819,2452.1,2451.5,0.08156821]
[1730650179050,4.07819,2452.1,2451.5,0.95536117]
[1730650179253,4.07808,2452.2,2451.5,0.95536117]
[1730650179254,4.07833,2452.0,2451.5,0.95536117]
[1730650179551,4.0782,2452.1,2451.5,5.03449117]
[1730650179751,4.0783,2452.0,2451.5,0.95536117]
[1730650180153,4.07848,2451.9,2451.5,0.87379296]
[1730650180309,4.0783,2452.0,2451.5,0.87379296]
[1730650180814,4.0783,2452.0,2451.6,0.4953063]
[1730650181169,3.35669617,2452.2,2451.2,0.8162]
[1730650181464,4.07897,2451.6,2451.2,0.8162]
[1730650181970,4.0789,2451.7,2451.2,0.8162]
[1730650182464,4.07898,2451.6,2451.2,0.8162]
[1730650182663,4.07897,2451.6,2451.2,0.8162]
[1730650182970,4.07914,2451.5,2451.2,0.8162]
[1730650183143,4.07946,2451.3,2451.2,0.8162]
[1730650183523,4.07963,2451.2,2451.0,1.5]
[1730650183742,4.0798,2451.1,2451.0,1.5]
[1730650184272,4.07963,2451.2,2451.0,1.5]
[1730650184484,4.0798,2451.1,2451.0,1.58159044]
[1730650184629,4.0798,2451.1,2451.0,1.5]
[1730650186326,4.07923,2451.5,2451.1,0.7844]
[1730650186526,4.07876,2451.8,2451.2,0.08158155]
[1730650186750,4.0784,2452.0,2451.3,4.07938]
[1730650186949,4.07855,2451.9,2451.3,4.07938]
[1730650187154,4.0784,2452.0,2451.4,0.48950703]
[1730650187431,4.0784,2452.0,2451.4,4.16084903]
[1730650187768,4.07858,2451.9,2451.4,4.16084903]
[1730650187968,4.0784,2452.0,2451.5,0.7844]
[1730650188176,4.18709617,2452.2,2451.6,0.08156809]
[1730650188177,4.07824,2452.1,2451.6,0.08156809]
[1730650188376,7.43482617,2452.2,2451.6,0.08156809]
[1730650188573,7.43482617,2452.2,2451.6,5.0628099]
[1730650188811,7.43482617,2452.2,2451.6,8.23924809]
[1730650189010,7.43482617,2452.2,2451.6,4.07882]
[1730650189178,7.43482617,2452.2,2451.7,4.07879]
[1730650189384,3.35669617,2452.2,2451.8,0.08156129]
[1730650189580,4.92836009,2452.5,2452.0,0.7844]
[1730650189782,4.07763,2452.4,2452.1,0.08155233]
[1730650189983,0.85089009,2452.6,2452.1,0.08155233]
[1730650190171,3.35669617,2452.7,2452.2,4.07781]
[1730650190393,3.35669617,2452.7,2452.1,0.49441523]
[1730650190578,3.35669617,2452.7,2452.2,8.15584]
[1730650190779,3.35669617,2452.7,2452.2,4.07788]
[1730650190983,4.07733,2452.6,2452.1,0.49441523]
[1730650191196,7.43390617,2452.7,2452.2,0.94351852]
[1730650191568,0.85089009,2453.1,2452.6,4.0773]
[1730650191806,4.20758626,2453.2,2452.7,4.15857781]
[1730650192106,3.35669617,2453.2,2452.2,0.95351852]
[1730650192322,3.35669617,2453.2,2452.8,0.7844]
[1730650192468,3.35669617,2453.2,2452.8,4.86137]
[1730650192669,4.07582,2453.5,2452.8,4.86137]
[1730650192670,4.07585,2453.5,2452.9,4.07672]
[1730650192913,4.07585,2453.5,2453.0,0.08151794]
[1730650193084,4.07585,2453.5,2453.0,4.15813794]
[1730650193283,8.15229,2453.6,2453.0,4.15813794]
[1730650193510,8.15229,2453.6,2453.0,4.07662]
[1730650193806,4.07651,2453.6,2453.0,8.65517951]
[1730650194017,8.15231,2453.6,2453.0,4.57855951]
[1730650194174,8.15225,2453.6,2453.0,4.57855951]
[1730650194371,4.07651,2453.6,2453.1,4.07646]
[1730650195010,0.0008,2453.6,2453.2,0.86591347]
[1730650195316,0.0008,2453.6,2453.2,4.86068]
[1730650195523,0.0008,2453.6,2453.3,0.486068]
[1730650196028,4.07583,2453.5,2453.2,0.7844]
[1730650196178,4.07656,2453.6,2453.2,0.7844]
[1730650196605,4.07594,2453.5,2453.2,0.7844]
[1730650196806,4.07594,2453.5,2452.7,0.7844]
[1730650196807,4.07631,2453.2,2452.7,0.7844]
[1730650197016,4.07623,2453.3,2452.7,0.7844]
[1730650197197,7.43303617,2453.2,2452.7,0.7844]
[1730650197878,3.35669617,2453.2,2452.8,4.15848469]
[1730650198117,3.35669617,2453.2,2452.7,0.7844]
[1730650198118,7.43300617,2453.2,2452.7,0.7844]
[1730650198275,8.58390679,2453.2,2452.7,0.7844]
[1730650198477,8.58395679,2453.2,2452.8,0.08152472]
[1730650198699,4.07668,2453.0,2452.8,0.08152472]
[1730650198915,4.07668,2453.0,2452.7,0.7844]
[1730650199723,4.07668,2453.0,2452.4,4.07752]
[1730650199724,4.07699,2452.8,2452.4,0.7844]
[1730650199889,4.07699,2452.8,2452.0,4.07819]
[1730650199890,4.07747,2452.5,2452.1,0.7844]
[1730650200091,7.84159517,2452.7,2452.1,4.8625]
[1730650200295,7.43389617,2452.7,2452.1,0.7844]
[1730650200619,4.07759,2452.5,2451.8,4.0785]
[1730650200821,4.07775,2452.4,2451.8,0.7844]
[1730650201037,4.07799,2452.2,2451.8,0.7844]
[1730650201385,4.07875,2451.8,2451.2,4.07959]
[1730650201623,4.07842,2452.0,2451.5,4.07911]
[1730650201784,4.07842,2452.0,2451.6,0.08156691]
[1730650201980,4.0784,2452.0,2451.6,0.08156691]
[1730650202315,4.07839,2452.0,2451.2,0.636399]
[1730650202483,4.07822,2452.1,2451.5,0.08156737]
[1730650202682,4.07868,2451.8,2451.1,4.86404]
[1730650202909,4.0788,2451.7,2451.2,0.22944]
[1730650203292,4.079,2451.6,2451.2,0.22944]
[1730650203540,4.0793,2451.4,2451.1,0.7844]
[1730650203821,3.35669617,2451.7,2451.1,0.7844]
[1730650203822,3.35669617,2451.7,2451.2,4.16110471]
[1730650203981,7.43551617,2451.7,2451.2,0.08158471]
[1730650204189,3.35669617,2451.7,2451.2,0.08158471]
[1730650204503,7.43559617,2451.7,2451.1,8.94379]
[1730650204703,7.43559617,2451.7,2451.2,0.636409]
[1730650205029,3.35669617,2451.7,2451.3,4.16102525]
[1730650205336,4.07901,2451.6,2451.2,0.636409]
[1730650205627,3.35669617,2451.7,2451.3,0.08157693]
[1730650206119,7.43557617,2451.7,2451.2,0.636409]
[1730650206321,4.07897,2451.6,2451.2,0.636409]
[1730650207482,4.07925,2451.5,2451.1,0.7844]
[1730650207925,7.43550617,2451.7,2451.2,0.08158199]
[1730650208115,3.35669617,2451.7,2451.2,4.16112199]
[1730650208285,4.07897,2451.6,2451.1,0.7844]
[1730650208688,4.07913,2451.5,2451.1,0.7844]
[1730650208930,3.35669617,2451.7,2451.1,0.7844]
[1730650209088,3.35669617,2451.7,2451.0,1.5]
[1730650209089,4.07975,2451.2,2451.0,1.5]
[1730650209285,4.07941,2451.4,2451.0,1.5]
[1730650209628,4.07978,2451.2,2451.0,1.5]
[1730650210401,4.07972,2451.2,2451.0,1.5]
[1730650210794,0.7587,2451.5,2451.0,1.5]
[1730650210795,4.07939,2451.4,2451.0,1.5]
[1730650211324,8.15885,2451.4,2451.0,1.5]
[1730650211654,4.07939,2451.4,2451.0,1.5]
[1730650211855,4.07956,2451.3,2451.0,1.5]
[1730650212001,4.07964,2451.2,2451.0,1.5]
[1730650212609,8.15936,2451.2,2451.0,1.5]
[1730650212917,4.07964,2451.2,2451.0,1.5]
[1730650213551,4.895544,2451.2,2451.0,1.5]
[1730650214232,4.07942,2451.4,2451.0,1.5]
[1730650214434,4.07942,2451.4,2451.0,1.58159147]
[1730650214642,3.35669617,2451.7,2451.1,4.07976]
[1730650214823,3.35669617,2451.7,2451.0,1.58159147]
[1730650214824,4.07869,2451.8,2451.3,4.07938]
[1730650215156,4.0785,2451.9,2451.4,0.08157582]
[1730650215354,4.0785,2451.9,2451.4,0.90787582]
[1730650215505,4.07846,2451.9,2451.4,0.90787582]
[1730650215858,4.07841,2452.0,2451.4,0.90787582]
[1730650216147,4.07841,2452.0,2451.5,4.07903]
[1730650216307,4.07841,2452.0,2451.4,5.40423558]
[1730650216508,4.07866,2451.8,2451.4,0.8263]
[1730650216742,5.17251962,2452.1,2451.1,0.8134]
[1730650216743,4.07924,2451.5,2451.1,0.8134]
[1730650216951,3.35669617,2451.7,2451.1,0.8134]
[1730650217145,4.07942,2451.4,2451.1,0.8134]
[1730650217345,8.15816,2451.6,2451.1,4.97469471]
[1730650217542,4.07908,2451.6,2451.1,0.89498471]
[1730650217845,4.07926,2451.5,2451.1,0.89498471]
[1730650218453,4.07922,2451.5,2451.1,0.89498471]
[1730650218822,4.0793,2451.4,2451.1,0.89498471]
[1730650219054,4.0793,2451.4,2451.1,0.8134]
[1730650219559,4.82265762,2451.6,2451.0,1.5]
[1730650219560,4.82266762,2451.6,2451.0,1.5]
[1730650219709,4.07923,2451.5,2451.1,0.081586]
[1730650219912,4.07923,2451.5,2451.0,1.5]
[1730650219913,4.07938,2451.4,2451.0,1.5]
[1730650220144,4.0798,2451.1,2451.0,1.5]
[1730650220363,7.43645617,2451.2,2451.0,1.5]
[1730650220853,4.07943,2451.4,2451.0,1.5]
[1730650221012,4.07973,2451.2,2451.0,1.5]
[1730650221213,4.07942,2451.4,2451.0,1.5]
[1730650221444,7.43554617,2451.7,2451.1,4.07977]
[1730650221445,7.43557617,2451.7,2451.1,4.07977]
[1730650221915,7.43557617,2451.7,2451.0,1.73134]
[1730650222111,7.43557617,2451.7,2451.1,4.07967]
[1730650222112,4.07897,2451.6,2451.1,4.07967]
[1730650222315,7.43557617,2451.7,2451.0,1.5]
[1730650222316,4.0794,2451.4,2451.0,1.5]
[1730650222614,4.07916,2451.5,2451.0,5.66152848]
[1730650222814,4.07933,2451.4,2451.0,1.58158848]
[1730650223445,4.07979,2451.2,2451.0,1.5]
[1730650223655,4.07943,2451.4,2451.0,1.5]
[1730650224029,8.15882,2451.4,2451.0,1.5]
[1730650224215,0.82092462,2451.6,2451.0,1.5]
[1730650224216,4.07916,2451.5,2451.1,0.08159022]
[1730650224414,4.07935,2451.4,2451.0,1.5]
[1730650224850,0.89794346,2451.4,2451.0,1.5]
[1730650225156,4.0798,2451.1,2451.0,1.5]
[1730650228039,4.07969,2451.2,2451.0,1.5]
[1730650228361,0.7739,2451.5,2451.0,1.5]
[1730650228576,3.35669617,2451.7,2451.2,4.07955]
[1730650228577,4.07893,2451.7,2451.2,4.07955]
[1730650228735,4.85265,2451.8,2451.3,0.08158069]
[1730650228936,4.07858,2451.9,2451.4,4.07929]
[1730650229156,8.93071,2452.0,2451.4,4.07929]
[1730650229368,4.07848,2451.9,2451.4,4.07929]
[1730650229669,4.85235,2452.0,2451.3,4.89278]
[1730650229853,4.85235,2452.0,2451.5,4.07901]
[1730650230155,4.85235,2452.0,2451.4,8.647698]
[1730650230156,8.9308,2452.0,2451.4,8.647698]
[1730650230329,4.85235,2452.0,2451.5,4.16068111]
[1730650230923,7.43476617,2452.2,2451.6,4.07896]
[1730650231117,7.43476617,2452.2,2451.7,4.57634956]
[1730650231534,7.43476617,2452.2,2451.7,0.49761956]
[1730650231736,4.07826,2452.1,2451.7,0.08156645]
[1730650232358,4.0784,2452.0,2451.5,4.07907]
[1730650233667,0.8183,2452.5,2451.6,0.89866662]
[1730650233893,8.25200617,2452.8,2452.3,4.07771]
[1730650234093,8.25200617,2452.8,2452.3,0.97882099]
[1730650234094,3.35669617,2452.8,2452.3,0.97882099]
[1730650234384,4.07681,2452.9,2452.3,0.97882099]
[1730650234385,8.15353,2453.0,2452.5,4.07745]
[1730650234592,4.07682,2452.9,2452.4,4.07753]
[1730650234742,4.07699,2452.8,2452.3,4.07768]
[1730650235495,4.07699,2452.8,2452.4,0.08154339]
[1730650235852,4.07699,2452.8,2452.3,0.897258]
[1730650236255,4.07699,2452.8,2452.3,4.974968]
[1730650236885,4.07699,2452.8,2452.3,0.897258]
[1730650237085,4.07677,2453.0,2452.4,4.1591735]
[1730650237290,4.0768,2452.9,2452.4,4.1591735]
[1730650237454,4.07706,2452.8,2452.4,0.0815435]
[1730650238071,4.07706,2452.8,2452.2,4.8949]
[1730650238275,3.35669617,2452.8,2452.2,0.8171]
[1730650238448,3.35669617,2452.8,2452.4,4.07747]
[1730650238643,3.35669617,2452.8,2452.3,0.08154423]
[1730650238644,3.35669617,2452.8,2452.3,8.15542]
[1730650239085,2.35669617,2452.8,2452.4,4.07762]
[1730650239276,6.43375617,2452.8,2452.3,0.897252]
[1730650239446,6.43375617,2452.8,2452.3,4.974962]
[1730650240292,2.35669617,2452.8,2452.3,4.974962]
[1730650240682,6.43367617,2452.8,2452.3,9.052672]
[1730650240880,2.35669617,2452.8,2452.4,0.9869772]
[1730650241063,8.28384626,2453.3,2452.6,4.07721]
[1730650241284,4.20758626,2453.3,2453.0,4.07656]
[1730650242289,4.20758626,2453.3,2452.9,4.0768]
[1730650242488,8.28373626,2453.3,2452.8,4.07685]
[1730650242701,4.07642,2453.2,2452.7,5.30508887]
[1730650242909,4.07651,2453.1,2452.7,0.8171]
[1730650243228,4.07642,2453.2,2452.7,0.8171]
[1730650243520,4.8947,2453.2,2452.5,4.89456]
[1730650243815,8.15347,2453.0,2452.5,4.89456]
[1730650243987,4.07672,2453.0,2452.5,4.89456]
[1730650244578,4.07672,2453.0,2452.5,4.89449]
[1730650244774,1.64670063,2453.2,2452.6,0.08153492]
[1730650244978,4.07684,2452.9,2452.5,4.89457]
[1730650245205,4.07684,2452.9,2452.5,0.8171]
[1730650245719,4.07655,2453.1,2452.5,0.89863996]
[1730650245891,4.07664,2453.0,2452.5,0.8171]
[1730650246207,4.0771,2452.8,2452.3,4.07779]
[1730650246408,4.07715,2452.7,2452.2,8.9728]
[1730650246704,4.07709,2452.8,2452.2,8.9728]
[1730650246705,8.1542,2452.8,2452.2,8.97281]
[1730650247038,4.07714,2452.7,2452.2,4.89494]
[1730650247183,0.7644,2453.2,2452.5,4.07734]
[1730650247370,4.07665,2453.0,2452.5,4.07734]
[1730650247567,8.91721,2453.2,2452.6,4.07717]
[1730650247814,0.7644,2453.2,2452.7,4.07713]
[1730650248117,8.1522,2453.4,2452.9,4.0768]
[1730650248324,4.07608,2453.4,2452.9,4.07672]
[1730650248478,0.7644,2453.5,2452.9,4.07672]
[1730650248673,4.84024,2453.5,2452.9,4.07672]
[1730650248893,4.84024,2453.5,2453.1,4.07644]
[1730650249090,4.07645,2453.6,2453.1,4.07644]
[1730650249501,4.07582,2453.5,2453.0,4.0765]
[1730650249705,4.07582,2453.5,2453.0,8.15304]
[1730650250025,4.07582,2453.5,2453.0,4.0765]
[1730650250217,0.0008,2453.6,2453.2,4.0763]
[1730650250418,4.07647,2453.6,2453.2,4.89149]
[1730650250734,4.07582,2453.5,2453.2,0.81528]
[1730650250895,4.07582,2453.5,2453.1,4.07646]
[1730650251405,0.0008,2453.6,2453.1,4.07646]
[1730650251611,4.07581,2453.5,2453.1,4.07646]
[1730650251806,4.07581,2453.5,2452.9,4.567532]
[1730650251807,4.07625,2453.3,2452.9,0.490762]
[1730650252019,4.07625,2453.3,2452.2,3.02]
[1730650252020,4.07657,2453.1,2452.6,4.0773]
[1730650252331,8.19735617,2453.3,2452.7,0.08153163]
[1730650252505,4.07656,2453.1,2452.6,4.0773]
[1730650253199,8.19736617,2453.3,2452.5,0.8309]
[1730650253200,4.07688,2452.9,2452.5,0.8309]
[1730650253599,4.07688,2452.9,2452.5,4.90833]
[1730650253829,3.35669617,2453.8,2452.6,0.08153705]
[1730650254144,4.8403,2453.5,2453.0,4.07656]
[1730650254299,8.91624,2453.5,2452.7,4.62713]
[1730650254506,4.8403,2453.5,2452.7,0.55]
[1730650254820,4.07603,2453.4,2453.0,4.07663]
[1730650255125,4.8403,2453.5,2453.0,8.15326]
[1730650255431,4.8403,2453.5,2453.0,4.07663]
[1730650255843,0.7644,2453.5,2452.5,0.8309]
[1730650255996,4.07659,2453.1,2452.5,0.8309]
[1730650256343,4.0767,2453.0,2452.5,4.90826]
[1730650256537,4.0767,2453.0,2452.6,4.07727]
[1730650256696,4.0767,2453.0,2452.6,4.14210214]
[1730650256899,4.0767,2453.0,2452.5,4.90826]
[1730650257098,4.0767,2453.0,2452.5,8.98565]
[1730650257347,4.0767,2453.0,2452.5,9.884215]
[1730650257622,4.0767,2453.0,2452.6,4.07728]
[1730650258942,4.0767,2453.0,2452.6,0.08153746]
[1730650259297,4.07645,2453.2,2452.6,4.15869746]
[1730650259500,7.43293617,2453.3,2452.6,0.08153746]
[1730650259700,3.35669617,2453.3,2452.6,0.08153746]
[1730650259902,4.07639,2453.2,2452.7,4.07713]
[1730650260211,3.35669617,2453.3,2452.8,4.07684]
[1730650260395,4.07631,2453.2,2452.8,4.07684]
[1730650260795,4.07631,2453.2,2452.7,4.07713]
[1730650261045,7.08555,2453.7,2452.7,4.07713]
[1730650261046,0.84848783,2453.9,2453.3,0.01]
[1730650261347,0.0307206,2454.1,2454.0,4.87537]
[1730650261500,0.0307206,2454.1,2454.0,5.827421]
[1730650261824,0.0307206,2454.1,2454.0,5.90889311]
[1730650262040,0.0307206,2454.1,2454.0,10.04505449]
[1730650262204,0.005,2454.3,2454.2,4.89504]
[1730650262545,1e-05,2454.3,2454.2,13.31220138]
[1730650262844,0.005,2454.7,2454.5,4.88454]
[1730650263013,0.005,2454.7,2454.5,4.87454]
[1730650263219,0.005,2454.7,2454.5,5.42454]
[1730650264036,0.005,2454.7,2454.5,5.43454]
[1730650266126,0.005,2454.7,2454.5,5.51599173]
[1730650266306,0.005,2454.7,2454.5,6.39356917]
[1730650266506,0.005,2454.7,2454.5,9.39356917]
[1730650267868,1e-05,2454.7,2454.6,4.08398]
[1730650268076,1e-05,2454.7,2454.6,8.5158163]
[1730650268374,0.060519,2455.4,2455.3,7.63282]
[1730650268974,0.060519,2455.4,2455.3,4.63282]
[1730650269396,0.035,2458.2,2455.8,0.8004]
[1730650269534,0.035,2458.2,2457.7,4.61884]
[1730650269732,0.035,2458.2,2457.5,4.06901]
[1730650269929,0.035,2458.2,2457.3,4.06937]
[1730650270145,0.035,2458.2,2457.2,0.8004]
[1730650270146,5.13545244,2458.2,2457.2,0.8004]
[1730650270475,5.13545244,2458.2,2457.0,4.06989]
[1730650270476,0.04117222,2457.7,2457.0,4.06989]
[1730650270790,0.04117222,2457.7,2456.9,4.07013]
[1730650270791,0.7997,2457.6,2456.9,4.07013]
[1730650270930,0.84142775,2457.6,2457.0,4.06988]
[1730650271131,4.06918,2457.5,2456.6,4.07059]
[1730650271331,0.84142775,2457.6,2456.8,4.07032]
[1730650271332,0.7997,2457.6,2456.8,4.07032]
[1730650271535,0.7997,2457.6,2456.4,0.8004]
[1730650271536,0.04172775,2457.4,2456.4,4.87132]
[1730650271733,4.06964,2457.3,2456.4,4.87132]
[1730650271974,0.406964,2457.2,2456.4,4.87127]
[1730650272394,0.04246128,2457.1,2456.6,4.07055]
[1730650272548,0.04246128,2457.1,2457.0,4.07]
[1730650272734,4.06845,2458.0,2457.1,4.06983]
[1730650272931,4.06845,2458.0,2457.0,4.62]
[1730650272932,0.042474,2457.1,2457.0,4.07]
[1730650273135,4.06881,2457.8,2457.0,4.07]
[1730650273390,0.406881,2457.7,2457.1,4.06981]
[1730650273740,0.406881,2457.7,2456.4,0.8104]
[1730650273741,4.475851,2457.7,2456.9,4.07005]
[1730650273944,0.406881,2457.7,2456.9,4.07005]
[1730650274473,0.406881,2457.7,2457.1,4.0697]
[1730650274647,0.406881,2457.7,2457.1,4.06968]
[1730650274850,0.4475691,2457.6,2456.9,4.07008]
[1730650275040,4.06935,2457.4,2456.7,4.0704]
[1730650275269,0.7997,2457.5,2456.7,4.0704]
[1730650275689,4.0694,2457.4,2456.7,4.0704]
[1730650275890,0.7997,2457.5,2456.8,4.07021]
[1730650276075,0.53163291,2457.4,2456.8,4.07021]
[1730650276523,0.53163291,2457.4,2456.7,4.0704]
[1730650276726,0.53163291,2457.4,2456.5,4.07076]
[1730650276727,0.53163291,2457.4,2456.6,4.07065]
[1730650276889,4.06962,2457.3,2456.6,4.07065]
[1730650277210,4.06962,2457.3,2456.5,4.07076]
[1730650277410,4.06988,2457.1,2456.5,4.07076]
[1730650277623,4.06966,2457.3,2456.5,4.07076]
[1730650277773,4.06972,2457.2,2456.5,4.07071]
[1730650278116,4.06988,2457.1,2456.3,4.07105]
[1730650278612,4.06988,2457.1,2456.4,4.07089]
[1730650278777,4.06988,2457.1,2456.5,4.0708]
[1730650279416,0.787936,2457.3,2456.5,4.0708]
[1730650279417,4.06967,2457.2,2456.5,4.0708]
[1730650279572,0.7997,2457.5,2456.6,4.07056]
[1730650279771,4.06961,2457.3,2456.7,0.08139361]
[1730650280218,4.07021,2456.9,2456.2,4.07121]
[1730650280411,0.407021,2456.8,2456.3,0.08140592]
[1730650280714,4.07019,2456.9,2456.3,0.08140592]
[1730650280924,4.06986,2457.1,2456.4,4.07097]
[1730650281077,4.06986,2457.1,2456.5,0.08140633]
[1730650281603,4.06957,2457.3,2456.6,4.07056]
[1730650281774,4.86896,2457.5,2456.7,0.08139831]
[1730650281977,4.06952,2457.3,2456.7,0.08139831]
[1730650282591,4.06952,2457.3,2456.7,0.08139742]
[1730650282592,5.06952,2457.3,2456.7,0.08139742]
[1730650282774,5.06952,2457.3,2456.6,4.07056]
[1730650283175,1.0,2457.3,2456.6,4.07056]
[1730650283383,1.0,2457.3,2456.9,4.07003]
[1730650283617,1.0,2457.3,2456.8,4.07021]
[1730650284175,1.0,2457.3,2456.9,4.07016]
[1730650284420,5.656405,2457.3,2456.6,4.07052]
[1730650284585,4.06968,2457.2,2456.6,4.07052]
[1730650284775,4.06995,2457.1,2456.4,4.07089]
[1730650284975,5.656505,2457.3,2456.5,0.08139918]
[1730650285813,0.04093997,2457.2,2456.7,4.07048]
[1730650286127,0.04093997,2457.2,2456.5,8.14146]
[1730650286128,4.11069997,2457.2,2456.5,8.14146]
[1730650286292,0.04093997,2457.2,2456.7,4.07039]
[1730650286702,0.55199797,2457.2,2456.7,4.07039]
[1730650287930,0.04093997,2457.2,2456.7,4.07039]
[1730650288802,8.91341484,2457.3,2456.7,4.07039]
[1730650289019,8.91341484,2457.3,2456.5,4.07077]
[1730650289020,4.06727,2458.7,2458.1,4.06818]
[1730650289215,4.06727,2458.7,2458.4,0.035]
[1730650289429,4.06746,2458.6,2458.4,0.035]
[1730650289632,0.813473,2458.6,2458.4,0.035]
[1730650289839,8.13455,2458.7,2458.4,0.035]
[1730650290048,3.96727,2458.7,2458.4,0.035]
[1730650290203,4.86137,2458.9,2458.4,0.035]
[1730650290204,4.06711,2458.8,2458.4,0.035]
[1730650290401,4.86137,2458.9,2458.4,0.035]
[1730650290717,4.06727,2458.7,2458.4,0.035]
[1730650291106,0.49154588,2458.8,2458.4,0.035]
[1730650291327,4.06719,2458.7,2458.4,0.035]
[1730650292239,4.06739,2458.6,2458.4,0.035]
[1730650292615,4.06752,2458.5,2458.4,0.035]
[1730650292806,4.881007,2458.5,2458.4,0.035]
[1730650293745,5.647507,2458.5,2458.4,0.035]
[1730650293960,12.01420317,2458.5,2458.4,0.035]
[1730650294452,12.01420317,2458.5,2457.0,0.7792]
[1730650294453,4.06905,2457.6,2457.0,0.7792]
[1730650294657,4.06887,2457.7,2457.1,4.06968]
[1730650294818,4.06887,2457.7,2457.0,0.7792]
[1730650294819,4.552627,2457.6,2457.0,4.84917]
[1730650295017,4.552627,2457.6,2457.0,4.06997]
[1730650295514,8.621747,2457.6,2457.0,4.07]
[1730650295714,8.621727,2457.6,2457.0,4.07]
[1730650295912,4.06934,2457.4,2456.9,4.07006]
[1730650296770,4.06998,2457.1,2456.5,4.0707]
[1730650296914,4.06976,2457.2,2456.6,4.07057]
[1730650297229,4.9316367,2457.4,2456.9,4.07008]
[1730650297230,0.8621967,2457.4,2456.9,4.07008]
[1730650297432,0.7665,2457.8,2457.1,4.06974]
[1730650297643,4.83527,2457.8,2457.2,4.15104527]
[1730650298149,4.06886,2457.7,2457.2,0.08138527]
[1730650298543,4.83527,2457.8,2457.2,0.08138527]
[1730650298726,4.83527,2457.8,2457.3,4.06946]
[1730650299115,4.83527,2457.8,2457.2,4.06951]
[1730650299455,0.7665,2457.8,2457.2,4.15089028]
[1730650300110,4.06845,2458.0,2457.3,4.0695]
[1730650300310,4.06843,2458.0,2457.5,4.06916]
[1730650300929,4.06827,2458.1,2457.6,4.06886]
[1730650301314,4.06812,2458.2,2457.7,0.0813685]
[1730650301609,4.06812,2458.2,2457.6,4.06886]
[1730650302457,4.06812,2458.2,2457.8,0.7792]
[1730650302621,4.06866,2457.9,2457.4,0.7792]
[1730650302813,8.18018317,2458.5,2457.4,0.7792]
[1730650302814,0.7665,2458.0,2457.4,0.7792]
[1730650303122,4.83447,2458.3,2457.7,4.06876]
[1730650303720,8.90248,2458.3,2457.7,4.06876]
[1730650304051,8.90241,2458.3,2457.7,4.06876]
[1730650304356,5.0676,2458.5,2457.8,0.08136428]
[1730650304547,1.0,2458.5,2458.0,4.06823]
[1730650304866,1.0,2458.5,2458.4,4.06768]
[1730650305014,1.0,2458.5,2458.4,4.14902217]
[1730650305217,1.0,2458.5,2458.4,5.04862939]
[1730650305466,0.15169428,2458.5,2458.4,5.59862939]
[1730650305676,0.15169428,2458.5,2458.4,5.51728722]
[1730650305908,0.15169428,2458.5,2458.4,5.59861643]
[1730650306112,0.0540888,2459.0,2458.9,5.41925]
[1730650306265,0.0540888,2459.0,2458.9,6.367875]
[1730650306663,0.0540888,2459.0,2458.9,6.44918406]
[1730650307997,0.0540888,2459.0,2458.9,6.367875]
[1730650308374,4.06487,2460.1,2459.1,0.55]
[1730650308576,8.1924431,2460.2,2459.6,4.06566]
[1730650308773,8.1924431,2460.2,2459.9,4.0652]
[1730650308774,0.0628131,2460.2,2459.9,4.0652]
[1730650308976,0.0628131,2460.2,2459.8,4.86766]
[1730650309200,0.0628131,2460.2,2459.9,4.0652]
[1730650309820,0.0628131,2460.2,2460.0,4.06503]
[1730650310192,0.0628131,2460.2,2460.1,4.61487]
[1730650310400,0.0628131,2460.2,2459.8,4.86765]
[1730650310599,0.0628131,2460.2,2459.9,4.06519]
[1730650310829,0.0628131,2460.2,2460.0,0.08128989]
[1730650311135,0.0628131,2460.2,2459.8,0.8024]
[1730650311296,0.0628131,2460.2,2459.8,4.86767]
[1730650311498,0.0628131,2460.2,2459.9,4.06518]
[1730650311697,0.0628131,2460.2,2460.0,4.14619993]
[1730650312000,0.0628131,2460.2,2459.8,4.86772]
[1730650312323,0.0628131,2460.2,2459.8,4.86766]
[1730650312530,0.0628131,2460.2,2459.8,0.8024]
[1730650312853,0.0628131,2460.2,2459.9,4.06514]
[1730650313125,0.0628131,2460.2,2459.9,4.06516]
[1730650313291,0.0628131,2460.2,2460.0,4.06501]
[1730650313492,0.0628131,2460.2,2459.9,4.551916]
[1730650313833,0.0628131,2460.2,2459.9,4.551846]